[Event "Snabb-SM för veteraner, 50+ 2019"]
[Site "Schackcentrum, Vegagatan 20, Gothenburg, Sweden"]
[Date "2019.10.06"]
[Round "9.8"]
[White "Madebrink, Lars"]
[Black "Karlsson, Ulf"]
[Result "1-0"]
[TimeControl "15 minutes + 10 seconds per move from move one"]
[WhiteFideId "1701347"]
[BlackFideId "1721674"]
[WhiteElo "2179"]
[BlackElo "2035"]

1. e4 {[%clk 00:15:19]} c5 {[%clk 00:15:19]} {[%emt 00:00:02]} 2. Nf3 {[%clk
00:15:27]} Nc6 {[%clk 00:15:27]} {[%emt 00:00:02]} 3. c3 {[%clk 00:15:29]}
{[%emt 00:00:08]} g6 {[%clk 00:14:22]} {[%emt 00:01:15]} 4. d4 {[%clk
00:14:21]} {[%emt 00:01:18]} cxd4 {[%clk 00:14:31]} {[%emt 00:00:02]} 5. cxd4
{[%clk 00:14:24]} {[%emt 00:00:06]} d5 {[%clk 00:14:39]} {[%emt 00:00:02]} 6.
exd5 {[%clk 00:14:29]} {[%emt 00:00:05]} Qxd5 {[%clk 00:14:47]} {[%emt
00:00:02]} 7. Nc3 {[%clk 00:14:37]} {[%emt 00:00:02]} Qd8 {[%clk 00:14:50]}
{[%emt 00:00:08]} 8. d5 {[%clk 00:14:36]} {[%emt 00:00:11]} Nb8 {[%clk
00:14:45]} {[%emt 00:00:15]} 9. Bf4 {[%clk 00:14:13]} {[%emt 00:00:32]} Bg7
{[%clk 00:13:22]} {[%emt 00:01:34]} 10. Bc4 {[%clk 00:13:09]} {[%emt 00:01:13]}
Nf6 {[%clk 00:12:41]} {[%emt 00:00:52]} 11. O-O {[%clk 00:13:16]} {[%emt
00:00:03]} O-O {[%clk 00:12:48]} {[%emt 00:00:03]} 12. Re1 {[%clk 00:12:50]}
{[%emt 00:00:36]} Bg4 {[%clk 00:12:18]} {[%emt 00:00:40]} 13. h3 {[%clk
00:12:46]} {[%emt 00:00:13]} Bxf3 {[%clk 00:12:26]} {[%emt 00:00:03]} 14. Qxf3
{[%clk 00:12:55]} Nbd7 {[%clk 00:12:29]} {[%emt 00:00:07]} 15. Rad1 {[%clk
00:12:39]} {[%emt 00:00:26]} Rc8 {[%clk 00:12:09]} {[%emt 00:00:30]} 16. Bb3
{[%clk 00:11:10]} {[%emt 00:01:39]} Nc5 {[%clk 00:12:17]} {[%emt 00:00:02]} 17.
Bc2 {[%clk 00:11:10]} {[%emt 00:00:10]} a6 {[%clk 00:10:32]} {[%emt 00:01:55]}
18. Be5 {[%clk 00:10:48]} {[%emt 00:00:31]} Ncd7 {[%clk 00:10:26]} {[%emt
00:00:18]} 19. Bd4 {[%clk 00:10:51]} {[%emt 00:00:06]} Re8 {[%clk 00:10:16]}
{[%emt 00:00:20]} 20. b4 {[%clk 00:09:58]} {[%emt 00:01:03]} b5 {[%clk
00:09:40]} {[%emt 00:00:45]} 21. Bb3 {[%clk 00:10:03]} {[%emt 00:00:06]} Nb6
{[%clk 00:09:37]} {[%emt 00:00:14]} 22. d6 {[%clk 00:06:44]} {[%emt 00:03:28]}
Qxd6 {[%clk 00:07:34]} {[%emt 00:02:13]} 23. Ne4 {[%clk 00:05:48]} {[%emt
00:01:06]} Qb8 {[%clk 00:05:03]} {[%emt 00:02:41]} 24. Bc5 {[%clk 00:04:25]}
{[%emt 00:01:33]} Nc4 {[%clk 00:03:08]} {[%emt 00:02:05]} 25. Bxe7 {[%clk
00:04:18]} {[%emt 00:00:17]} Nxe4 {[%clk 00:03:16]} {[%emt 00:00:02]} 26. Rxe4
{[%clk 00:04:20]} {[%emt 00:00:08]} Qa8 {[%clk 00:02:41]} {[%emt 00:00:45]} 27.
Rd7 {[%clk 00:03:37]} {[%emt 00:00:53]} f5 {[%clk 00:02:40]} {[%emt 00:00:12]}
28. Re1 {[%clk 00:02:40]} {[%emt 00:01:06]} Qxf3 {[%clk 00:02:47]} {[%emt
00:00:03]} 29. gxf3 {[%clk 00:02:49]} {[%emt 00:00:01]} Kh8 {[%clk 00:02:32]}
{[%emt 00:00:25]} 30. Red1 {[%clk 00:01:35]} {[%emt 00:01:24]} Ne5 {[%clk
00:02:12]} {[%emt 00:00:31]} 31. Ra7 {[%clk 00:01:43]} {[%emt 00:00:01]} Nxf3+
{[%clk 00:02:19]} {[%emt 00:00:03]} 32. Kg2 {[%clk 00:01:49]} {[%emt 00:00:03]}
Nd4 {[%clk 00:02:17]} {[%emt 00:00:13]} 33. Bf7 {[%clk 00:01:51]} {[%emt
00:00:09]} Nc6 {[%clk 00:01:51]} {[%emt 00:00:36]} 34. Bxe8 {[%clk 00:01:50]}
{[%emt 00:00:10]} Nxa7 {[%clk 00:01:59]} {[%emt 00:00:03]} 35. Bd7 {[%clk
00:01:50]} {[%emt 00:00:10]} Rc7 {[%clk 00:01:49]} {[%emt 00:00:20]} 36. Bc5
{[%clk 00:01:30]} {[%emt 00:00:30]} h6 {[%clk 00:01:11]} {[%emt 00:00:49]} 37.
Be6 {[%clk 00:01:31]} {[%emt 00:00:07]} Bf6 {[%clk 00:01:14]} {[%emt 00:00:07]}
38. Rd7 {[%clk 00:01:16]} {[%emt 00:00:26]} Be5 {[%clk 00:01:06]} {[%emt
00:00:19]} 39. Rxc7 Bxc7 {[%clk 00:01:15]} 40. Bxa7 {[%clk 00:01:28]} {[%emt
00:00:02]} 1-0

[Event "Snabb-SM för veteraner, 50+ 2019"]
[Site "Schackcentrum, Vegagatan 20, Gothenburg, Sweden"]
[Date "2019.10.06"]
[Round "9.9"]
[White "Wesslen, Ulf"]
[Black "Skulason, Johann"]
[Result "1-0"]
[TimeControl "15 minutes + 10 seconds per move from move one"]
[WhiteFideId "1705199"]
[BlackFideId "1733915"]
[WhiteElo "1971"]
[BlackElo "1839"]

1. d4 {[%clk 00:15:16]} {[%emt 00:00:03]} f5 {[%clk 00:15:20]} {[%emt
00:00:02]} 2. c4 {[%clk 00:15:02]} {[%emt 00:00:23]} Nf6 {[%clk 00:15:28]}
{[%emt 00:00:02]} 3. Nf3 {[%clk 00:15:07]} {[%emt 00:00:04]} e6 {[%clk
00:15:37]} {[%emt 00:00:02]} 4. g3 {[%clk 00:15:12]} {[%emt 00:00:04]} Be7
{[%clk 00:15:45]} {[%emt 00:00:02]} 5. Bg2 {[%clk 00:15:12]} {[%emt 00:00:10]}
O-O {[%clk 00:15:52]} {[%emt 00:00:03]} 6. O-O {[%clk 00:15:19]} {[%emt
00:00:04]} Ne4 {[%clk 00:15:27]} {[%emt 00:00:35]} 7. Nbd2 {[%clk 00:14:39]}
{[%emt 00:00:49]} d5 {[%clk 00:15:35]} {[%emt 00:00:03]} 8. Ne5 {[%clk
00:13:23]} {[%emt 00:01:25]} Nd7 {[%clk 00:15:36]} {[%emt 00:00:09]} 9. Ndf3
{[%clk 00:13:02]} {[%emt 00:00:31]} c6 {[%clk 00:15:32]} {[%emt 00:00:15]} 10.
Qc2 {[%clk 00:11:29]} {[%emt 00:01:43]} Ndf6 {[%clk 00:15:23]} {[%emt
00:00:19]} 11. b3 {[%clk 00:10:52]} {[%emt 00:00:47]} Bd7 {[%clk 00:15:32]}
{[%emt 00:00:02]} 12. Nd3 {[%clk 00:10:37]} {[%emt 00:00:23]} Rc8 {[%clk
00:15:10]} {[%emt 00:00:32]} 13. Nfe5 {[%clk 00:10:20]} {[%emt 00:00:26]} c5
{[%clk 00:14:55]} {[%emt 00:00:26]} 14. f3 {[%clk 00:09:24]} {[%emt 00:01:06]}
dxc4 {[%clk 00:13:04]} {[%emt 00:02:02]} 15. bxc4 {[%clk 00:09:06]} {[%emt
00:00:28]} Nd6 {[%clk 00:12:42]} {[%emt 00:00:31]} 16. Nxc5 {[%clk 00:09:10]}
{[%emt 00:00:06]} b6 {[%clk 00:12:25]} {[%emt 00:00:28]} 17. Nexd7 {[%clk
00:08:22]} {[%emt 00:00:57]} Nxd7 {[%clk 00:12:28]} {[%emt 00:00:08]} 18. Nxe6
{[%clk 00:08:23]} {[%emt 00:00:08]} Qe8 {[%clk 00:12:19]} {[%emt 00:00:20]} 19.
Nxf8 {[%clk 00:08:03]} {[%emt 00:00:30]} Rxc4 {[%clk 00:12:25]} {[%emt
00:00:04]} 20. Qb3 {[%clk 00:07:22]} {[%emt 00:00:51]} Kxf8 {[%clk 00:12:26]}
{[%emt 00:00:10]} 21. e3 {[%clk 00:06:53]} {[%emt 00:00:38]} a5 {[%clk
00:11:22]} {[%emt 00:01:15]} 22. Qd3 {[%clk 00:05:32]} {[%emt 00:01:30]} Qc8
{[%clk 00:08:51]} {[%emt 00:02:43]} 23. Bb2 {[%clk 00:05:22]} {[%emt 00:00:19]}
b5 {[%clk 00:07:58]} {[%emt 00:01:04]} 24. Rac1 {[%clk 00:05:07]} {[%emt
00:00:24]} g6 {[%clk 00:08:01]} {[%emt 00:00:07]} 25. e4 {[%clk 00:04:48]}
{[%emt 00:00:29]} Nb6 {[%clk 00:08:10]} {[%emt 00:00:01]} 26. d5 {[%clk
00:04:22]} {[%emt 00:00:36]} Na4 {[%clk 00:08:10]} {[%emt 00:00:11]} 27. Ba1
{[%clk 00:04:11]} {[%emt 00:00:20]} Rxc1 {[%clk 00:08:13]} {[%emt 00:00:08]} 28.
Qd4 {[%clk 00:04:06]} {[%emt 00:00:14]} Rxf1+ {[%clk 00:07:40]} {[%emt
00:00:44]} 29. Bxf1 {[%clk 00:04:11]} {[%emt 00:00:04]} Qc5 {[%clk 00:07:48]}
{[%emt 00:00:02]} 30. e5 {[%clk 00:04:06]} {[%emt 00:00:16]} Qxd4+ {[%clk
00:07:26]} {[%emt 00:00:31]} 31. Bxd4 {[%clk 00:04:15]} {[%emt 00:00:02]} Nc4
{[%clk 00:07:26]} {[%emt 00:00:10]} 32. d6 {[%clk 00:03:59]} {[%emt 00:00:26]}
Nxd6 {[%clk 00:07:04]} {[%emt 00:00:32]} 33. exd6 {[%clk 00:04:05]} {[%emt
00:00:04]} Bxd6 {[%clk 00:07:13]} 34. Bxb5 {[%emt 00:00:26]} Nc5 {[%clk
00:06:59]} {[%emt 00:00:08]} 35. Kf2 {[%clk 00:03:55]} {[%emt 00:00:20]} Ke7
{[%clk 00:06:57]} {[%emt 00:00:12]} 36. Ke3 {[%clk 00:03:56]} {[%emt 00:00:08]}
Ne6 {[%clk 00:06:44]} {[%emt 00:00:23]} 37. Bb6 {[%clk 00:03:21]} {[%emt
00:00:45]} Bc7 {[%clk 00:06:42]} {[%emt 00:00:12]} 38. Bxc7 {[%clk 00:03:20]}
{[%emt 00:00:11]} Nxc7 {[%clk 00:06:51]} {[%emt 00:00:01]} 39. Bc4 {[%clk
00:02:53]} {[%emt 00:00:37]} Kf6 {[%clk 00:06:32]} {[%emt 00:00:30]} 40. Kd4
{[%clk 00:02:47]} {[%emt 00:00:16]} h5 {[%clk 00:05:16]} {[%emt 00:01:26]} 41.
f4 {[%clk 00:02:33]} {[%emt 00:00:24]} g5 {[%clk 00:04:56]} {[%emt 00:00:31]}
42. fxg5+ {[%clk 00:02:23]} {[%emt 00:00:20]} Kxg5 {[%clk 00:05:04]} {[%emt
00:00:02]} 43. Ke5 {[%clk 00:02:31]} {[%emt 00:00:02]} Ne8 {[%clk 00:04:52]}
{[%emt 00:00:22]} 44. Be2 {[%clk 00:02:16]} {[%emt 00:00:26]} Nc7 {[%clk
00:04:24]} {[%emt 00:00:38]} 45. h4 {[%clk 00:02:06]} {[%emt 00:00:19]} Kh6
{[%clk 00:04:04]} {[%emt 00:00:30]} 46. Kxf5 {[%clk 00:02:08]} {[%emt
00:00:08]} a4 {[%clk 00:04:12]} {[%emt 00:00:03]} 47. Ke5 {[%clk 00:02:09]}
{[%emt 00:00:08]} a3 {[%clk 00:04:11]} {[%emt 00:00:11]} 48. Kd6 {[%clk
00:02:06]} {[%emt 00:00:12]} Ne8+ {[%clk 00:04:20]} {[%emt 00:00:02]} 49. Kc5
{[%clk 00:02:00]} {[%emt 00:00:15]} Nf6 {[%clk 00:04:23]} {[%emt 00:00:07]} 50.
Bd3 {[%clk 00:02:09]} Nd7+ {[%clk 00:04:25]} {[%emt 00:00:09]} 51. Kb4 {[%clk
00:02:10]} {[%emt 00:00:09]} Ne5 {[%clk 00:04:34]} {[%emt 00:00:01]} 52. Be2
{[%clk 00:02:13]} {[%emt 00:00:07]} Nc6+ {[%clk 00:04:28]} {[%emt 00:00:16]} 53.
Kxa3 {[%clk 00:02:17]} {[%emt 00:00:05]} Nd4 {[%clk 00:04:37]} 54. Bd1 {[%clk
00:02:25]} {[%emt 00:00:02]} Nf5 {[%clk 00:04:46]} {[%emt 00:00:02]} 55. g4
{[%clk 00:02:15]} {[%emt 00:00:20]} hxg4 {[%clk 00:04:39]} {[%emt 00:00:17]} 56.
Bxg4 {[%clk 00:02:05]} {[%emt 00:00:19]} Ne3 {[%clk 00:04:12]} {[%emt
00:00:38]} 57. Be2 {[%clk 00:02:01]} {[%emt 00:00:13]} Nc2+ {[%clk 00:04:02]}
{[%emt 00:00:20]} 58. Kb2 {[%clk 00:02:02]} {[%emt 00:00:09]} Nb4 {[%emt
00:00:04]} 59. a3 {[%clk 00:02:02]} {[%emt 00:00:10]} Nc6 {[%clk 00:04:15]}
{[%emt 00:00:04]} 60. Kc3 {[%clk 00:02:03]} {[%emt 00:00:08]} Kg6 {[%clk
00:04:15]} {[%emt 00:00:10]} 61. Kc4 {[%clk 00:01:57]} {[%emt 00:00:15]} Kf6
{[%clk 00:04:11]} {[%emt 00:00:14]} 62. Kd5 {[%clk 00:01:53]} {[%emt 00:00:14]}
Ne7+ {[%clk 00:04:08]} {[%emt 00:00:14]} 63. Kc5 {[%clk 00:01:52]} {[%emt
00:00:10]} Nf5 {[%clk 00:04:03]} {[%emt 00:00:15]} 64. h5 {[%clk 00:01:55]}
{[%emt 00:00:07]} Kg5 {[%clk 00:04:11]} {[%emt 00:00:03]} 1-0

[Event "Snabb-SM för veteraner, 50+ 2019"]
[Site "Schackcentrum, Vegagatan 20, Gothenburg, Sweden"]
[Date "2019.10.06"]
[Round "9.10"]
[White "Andersson, Kjell-Ake"]
[Black "Ansner, Bjorn"]
[Result "1-0"]
[TimeControl "15 minutes + 10 seconds per move from move one"]
[WhiteFideId "1713825"]
[BlackFideId "1702769"]
[WhiteElo "1854"]
[BlackElo "1934"]

1. d4 {[%clk 00:15:17]} {[%emt 00:00:02]} d5 {[%clk 00:15:13]} {[%emt
00:00:07]} 2. c4 {[%clk 00:15:24]} {[%emt 00:00:03]} e6 {[%clk 00:15:17]}
{[%emt 00:00:05]} 3. Nc3 {[%clk 00:15:32]} {[%emt 00:00:02]} f5 {[%clk
00:15:23]} {[%emt 00:00:05]} 4. Nf3 {[%clk 00:15:04]} {[%emt 00:00:38]} c6
{[%clk 00:15:29]} {[%emt 00:00:05]} 5. Bg5 {[%clk 00:14:55]} {[%emt 00:00:18]}
Be7 {[%clk 00:15:06]} {[%emt 00:00:34]} 6. Bxe7 {[%clk 00:15:02]} {[%emt
00:00:03]} Qxe7 {[%clk 00:15:13]} {[%emt 00:00:03]} 7. e3 {[%clk 00:15:07]}
{[%emt 00:00:06]} Nf6 {[%clk 00:15:20]} {[%emt 00:00:03]} 8. Be2 {[%clk
00:14:38]} {[%emt 00:00:38]} O-O {[%clk 00:15:24]} {[%emt 00:00:07]} 9. O-O
{[%clk 00:14:41]} {[%emt 00:00:06]} Nbd7 {[%clk 00:15:23]} {[%emt 00:00:12]} 10.
Rb1 {[%clk 00:14:23]} {[%emt 00:00:28]} Ne4 {[%clk 00:14:02]} {[%emt 00:01:31]}
11. Qc2 {[%clk 00:13:56]} {[%emt 00:00:36]} b6 {[%clk 00:11:04]} {[%emt
00:03:09]} 12. b4 {[%clk 00:12:00]} {[%emt 00:02:05]} Bb7 {[%clk 00:09:22]}
{[%emt 00:01:52]} 13. b5 {[%clk 00:11:08]} {[%emt 00:01:02]} c5 {[%clk
00:08:08]} {[%emt 00:01:22]} 14. dxc5 {[%clk 00:09:55]} {[%emt 00:01:26]} Ndxc5
{[%clk 00:05:18]} {[%emt 00:02:59]} 15. Rbd1 {[%clk 00:08:22]} {[%emt
00:01:42]} Rfd8 {[%clk 00:04:14]} {[%emt 00:01:16]} 16. a4 {[%clk 00:07:43]}
{[%emt 00:00:48]} Rac8 {[%clk 00:04:16]} {[%emt 00:00:08]} 17. Nxe4 {[%clk
00:06:55]} {[%emt 00:00:59]} Nxe4 {[%clk 00:02:43]} {[%emt 00:01:43]} 18. Qb3
{[%clk 00:06:21]} {[%emt 00:00:43]} Rc5 {[%clk 00:01:25]} {[%emt 00:01:29]} 19.
Nd4 {[%clk 00:05:38]} {[%emt 00:00:53]} Rdc8 {[%clk 00:01:28]} {[%emt
00:00:06]} 20. cxd5 {[%clk 00:04:47]} {[%emt 00:01:02]} Bxd5 {[%clk 00:01:33]}
{[%emt 00:00:05]} 21. Qa3 {[%clk 00:03:20]} {[%emt 00:01:37]} Nc3 {[%clk
00:01:03]} {[%emt 00:00:11]} 22. Rc1 {[%clk 00:03:03]} {[%emt 00:00:55]} Qg5
{[%clk 00:00:58]} {[%emt 00:00:16]} 23. g3 {[%clk 00:01:50]} {[%emt 00:01:23]}
Qe7 {[%clk 00:00:43]} {[%emt 00:00:25]} 24. Bd3 {[%clk 00:01:41]} {[%emt
00:00:19]} Qd6 {[%clk 00:00:42]} {[%emt 00:00:11]} 25. Rxc3 {[%clk 00:01:44]}
{[%emt 00:00:07]} 1-0

[Event "Snabb-SM för veteraner, 50+ 2019"]
[Site "Schackcentrum, Vegagatan 20, Gothenburg, Sweden"]
[Date "2019.10.06"]
[Round "9.11"]
[White "Jacobsson, Lennart"]
[Black "Kirppo, Ronny"]
[Result "1/2-1/2"]
[TimeControl "15 minutes + 10 seconds per move from move one"]
[WhiteFideId "1753320"]
[BlackFideId "1724681"]
[WhiteElo "1833"]
[BlackElo "1877"]

1. e4 {[%clk 00:14:07]} {[%emt 00:01:11]} c5 {[%clk 00:15:19]} {[%emt
00:00:02]} 2. Nf3 {[%clk 00:14:11]} {[%emt 00:00:06]} Nc6 {[%clk 00:15:27]}
{[%emt 00:00:02]} 3. c3 {[%clk 00:14:16]} {[%emt 00:00:06]} Nf6 {[%clk
00:15:16]} {[%emt 00:00:21]} 4. Bd3 {[%clk 00:14:03]} {[%emt 00:00:23]} g6
{[%clk 00:14:11]} {[%emt 00:01:15]} 5. O-O {[%clk 00:14:05]} {[%emt 00:00:07]}
Bg7 {[%clk 00:14:15]} {[%emt 00:00:06]} 6. Bc2 {[%clk 00:13:46]} {[%emt
00:00:30]} O-O {[%clk 00:13:40]} {[%emt 00:00:46]} 7. d4 {[%clk 00:13:39]}
{[%emt 00:00:17]} cxd4 {[%clk 00:13:30]} {[%emt 00:00:20]} 8. cxd4 {[%clk
00:13:38]} {[%emt 00:00:10]} d5 {[%clk 00:13:39]} {[%emt 00:00:03]} 9. e5
{[%clk 00:13:34]} {[%emt 00:00:13]} Ne4 {[%clk 00:11:36]} {[%emt 00:02:13]} 10.
Re1 {[%clk 00:13:01]} {[%emt 00:00:42]} Bg4 {[%clk 00:10:46]} {[%emt 00:01:00]}
11. Be3 {[%clk 00:10:10]} {[%emt 00:03:01]} Rc8 {[%clk 00:08:16]} {[%emt
00:02:50]} 12. h3 {[%clk 00:08:34]} {[%emt 00:01:55]} Be6 {[%clk 00:08:25]}
{[%emt 00:00:02]} 13. a3 {[%clk 00:07:34]} {[%emt 00:01:10]} f6 {[%clk
00:04:36]} {[%emt 00:03:59]} 14. exf6 {[%clk 00:07:31]} {[%emt 00:00:13]} exf6
{[%clk 00:04:18]} {[%emt 00:00:28]} 15. Nbd2 {[%clk 00:07:00]} {[%emt
00:00:40]} Nxd2 {[%clk 00:04:04]} {[%emt 00:00:24]} 16. Qxd2 {[%clk 00:07:08]}
{[%emt 00:00:02]} Qd7 {[%clk 00:04:04]} {[%emt 00:00:10]} 17. Kh2 {[%clk
00:07:01]} {[%emt 00:00:17]} Rfe8 {[%clk 00:04:06]} {[%emt 00:00:08]} 18. Bh6
{[%clk 00:06:48]} {[%emt 00:00:23]} Bf5 {[%clk 00:03:39]} {[%emt 00:00:38]} 19.
Bb3 {[%clk 00:06:35]} {[%emt 00:00:22]} Be6 {[%clk 00:03:00]} {[%emt 00:00:49]}
20. Bf4 {[%clk 00:05:34]} {[%emt 00:01:11]} Bf7 {[%clk 00:03:03]} {[%emt
00:00:07]} 21. Ba4 {[%clk 00:05:08]} {[%emt 00:00:36]} Bf8 {[%clk 00:02:58]}
{[%emt 00:00:15]} 22. b4 {[%clk 00:05:06]} {[%emt 00:00:12]} Bd6 {[%clk
00:02:51]} {[%emt 00:00:17]} 23. Bxd6 {[%clk 00:05:07]} {[%emt 00:00:09]} Qxd6+
{[%clk 00:03:00]} {[%emt 00:00:01]} 24. Kg1 {[%clk 00:05:13]} {[%emt 00:00:03]}
Re4 {[%clk 00:02:35]} {[%emt 00:00:36]} 25. Bc2 {[%clk 00:05:06]} {[%emt
00:00:17]} Ree8 {[%emt 00:00:13]} 26. Bd3 {[%emt 00:00:05]} Rxe1+ {[%clk
00:01:50]} {[%emt 00:00:38]} 27. Rxe1 {[%emt 00:00:04]} Re8 28. Rc1 {[%clk
00:05:15]} {[%emt 00:00:07]} Kg7 {[%emt 00:00:11]} 29. Qc2 {[%clk 00:05:05]}
{[%emt 00:00:17]} a6 {[%clk 00:01:41]} {[%emt 00:00:31]} 30. Qc3 {[%clk
00:03:53]} {[%emt 00:01:22]} Re7 {[%clk 00:01:38]} {[%emt 00:00:12]} 31. Qd2
{[%clk 00:03:01]} {[%emt 00:01:01]} Be8 {[%clk 00:01:42]} {[%emt 00:00:07]} 32.
Qa2 {[%clk 00:02:34]} {[%emt 00:00:37]} Bd7 {[%clk 00:01:20]} {[%emt 00:00:32]}
33. Qd2 {[%clk 00:02:21]} {[%emt 00:00:23]} Be8 {[%clk 00:01:27]} {[%emt
00:00:03]} 34. Rc5 {[%clk 00:02:22]} {[%emt 00:00:09]} Bd7 {[%clk 00:01:08]}
{[%emt 00:00:29]} 35. Qa2 {[%clk 00:02:27]} {[%emt 00:00:05]} Be6 {[%clk
00:01:14]} {[%emt 00:00:04]} 36. Qc2 {[%clk 00:02:25]} {[%emt 00:00:13]} Bf7
{[%clk 00:01:04]} {[%emt 00:00:20]} 37. Qd2 {[%clk 00:02:30]} {[%emt 00:00:04]}
Rc7 {[%clk 00:00:53]} {[%emt 00:00:21]} 38. Qe2 {[%clk 00:02:26]} {[%emt
00:00:14]} Re7 {[%clk 00:01:01]} {[%emt 00:00:02]} 39. Qc2 {[%clk 00:02:33]}
{[%emt 00:00:03]} Rc7 {[%clk 00:01:08]} {[%emt 00:00:03]} 40. Qc1 {[%clk
00:02:34]} {[%emt 00:00:09]} Be8 {[%clk 00:01:04]} {[%emt 00:00:14]} 41. h4
{[%clk 00:02:34]} {[%emt 00:00:10]} Bf7 {[%clk 00:01:10]} {[%emt 00:00:04]} 42.
Rc2 {[%clk 00:02:32]} {[%emt 00:00:12]} Re7 {[%clk 00:01:17]} {[%emt 00:00:03]}
43. Qd2 {[%clk 00:02:32]} {[%emt 00:00:10]} Rc7 {[%clk 00:01:15]} {[%emt
00:00:12]} 44. Rc1 {[%clk 00:02:36]} {[%emt 00:00:06]} Re7 {[%emt 00:00:14]} 45.
g3 {[%clk 00:02:32]} Be8 {[%clk 00:01:32]} {[%emt 00:00:03]} 46. Bf1 {[%clk
00:02:22]} {[%emt 00:00:19]} Bd7 {[%clk 00:01:35]} {[%emt 00:00:07]} 47. Bg2
{[%clk 00:02:29]} {[%emt 00:00:03]} Bf5 {[%clk 00:01:31]} {[%emt 00:00:14]} 48.
Nh2 {[%clk 00:02:11]} {[%emt 00:00:27]} Be4 {[%clk 00:01:33]} {[%emt 00:00:09]}
49. f3 {[%clk 00:02:18]} {[%emt 00:00:03]} Bf5 {[%clk 00:01:42]} {[%emt
00:00:02]} 50. Kf2 {[%clk 00:02:16]} {[%emt 00:00:11]} h6 {[%clk 00:01:24]}
{[%emt 00:00:28]} 51. Nf1 {[%clk 00:02:21]} {[%emt 00:00:04]} g5 {[%clk
00:01:13]} {[%emt 00:00:21]} 52. Ne3 {[%clk 00:02:20]} {[%emt 00:00:11]} Bg6
{[%clk 00:01:22]} 53. hxg5 {[%clk 00:02:20]} {[%emt 00:00:10]} hxg5 {[%clk
00:01:24]} {[%emt 00:00:08]} 54. Rh1 {[%clk 00:02:17]} 1/2-1/2

[Event "Snabb-SM för veteraner, 50+ 2019"]
[Site "Schackcentrum, Vegagatan 20, Gothenburg, Sweden"]
[Date "2019.10.06"]
[Round "10.1"]
[White "Svenn, Gosta"]
[Black "Svenn, Matti"]
[Result "1/2-1/2"]
[TimeControl "15 minutes + 10 seconds per move from move one"]
[WhiteTitle "FM"]
[WhiteFideId "1700553"]
[BlackFideId "1705091"]
[WhiteElo "2272"]
[BlackElo "2195"]

1. d4 {[%clk 00:15:15]} {[%emt 00:00:04]} d5 {[%clk 00:15:15]} {[%emt
00:00:06]} 2. c4 {[%clk 00:15:23]} {[%emt 00:00:03]} e6 {[%clk 00:15:23]}
{[%emt 00:00:02]} 3. Nc3 {[%clk 00:15:29]} {[%emt 00:00:04]} Be7 {[%clk
00:15:31]} {[%emt 00:00:02]} 4. Nf3 {[%clk 00:15:28]} {[%emt 00:00:11]} Nf6
{[%clk 00:15:39]} {[%emt 00:00:02]} 5. cxd5 {[%clk 00:15:30]} {[%emt 00:00:08]}
exd5 {[%clk 00:15:39]} {[%emt 00:00:10]} 6. Bg5 {[%clk 00:15:36]} {[%emt
00:00:04]} h6 {[%clk 00:15:28]} {[%emt 00:00:21]} 7. Bh4 {[%clk 00:15:42]}
{[%emt 00:00:05]} O-O {[%clk 00:14:31]} {[%emt 00:01:07]} 8. e3 {[%clk
00:15:45]} {[%emt 00:00:06]} Nbd7 {[%clk 00:14:09]} {[%emt 00:00:32]} 9. Bd3
{[%clk 00:15:52]} {[%emt 00:00:04]} b6 {[%clk 00:14:13]} {[%emt 00:00:06]} 10.
O-O {[%clk 00:15:52]} {[%emt 00:00:09]} Bb7 {[%clk 00:14:20]} {[%emt 00:00:03]}
11. a3 {[%clk 00:15:35]} {[%emt 00:00:27]} c5 {[%clk 00:14:25]} {[%emt
00:00:05]} 12. Rc1 {[%clk 00:15:06]} {[%emt 00:00:39]} Ne4 {[%clk 00:13:53]}
{[%emt 00:00:42]} 13. Bxe7 {[%clk 00:14:58]} {[%emt 00:00:18]} 1/2-1/2